Workbook

Sheet Main
A1: API 2000 | D1: 7th Edition, Sect. 3.3.2 | T1: Richards Industrials
A2: Normal Tank Venting Requirements
S3: Version 1.0c 4/30/25
B5: IN-BREATHING for Blanketing (Padding) | M5: OUT-BREATHING for Vapor Recovery (Depadding)
B6: Pressure Regulator PRV (e.g., 608, etc.) | M6: Back Pressure (Sustaining) Regulator BPRV (e.g., 508, etc.)
B8: Latitude | F8: Avg. Storage Temp. | I8: Enter Tank Vol. | M8: Liquid Type | Q8: Y-Factor
F9: 80 | I9: 2262 | Q9: =Calculations!E11 -> 0.25
B10: See World Map | F10: Degrees F | I10: Cubic Feet | L10: Non-Vol.: V.P. ≤ 0.73 psi (5.0 kPa) | Q10: Reference
L11: Volatile.: V.P. > 0.73 psi (5.0 kPa)
A12: Vapor Pressure Range | F12: C-Factor | H12: Insulation Thk., in. (mm)
F13: =Calculations!B11 -> 4
B14: =CONCATENATE("Hexane V.P. at Temp. ",ROUND(Calculations!W29,3)," ",Calculations!W24) -> Hexane V.P. at Temp. 3.148 psia | F14: Reference
I15: Ri Reduction-Factor
B16: Pump Out | I16: =Calculations!R12 -> 1 | M16: Pump In
B17: 25 | I17: For 0.7 Btu/h·ft2·oF [4 W/(m2·K)] tank heat transfer coeff., & 0.05 W/(m·k) insul. thermal conductivity. | M17: 25 | N17: =Calculations!K8 -> GPM
M18: Units Same as Pump-out
B21: Instructions:
B22: 1) | C22: Fill in all white boxes / drop downs
B23: 2) | C23: Calculation automatic when data entered or selected
B24: 3) | C24: To print this page, select "Print" button
B25: Use this program to determine required In- and Out-Breathing gas flows
B26: Size blanketing regulators using sizing charts or JVCV
B27: For additional information,
F30: Blanketing Regulator Flow = | G30: =Calculations!B19 -> 2946.847752 | H30: SCFH | I30: =G30*0.02831685 -> 83.44544577 | J30: NCMH | P30: Vapor Recovery Regulator Flow = | Q30: =Calculations!B23 -> 594.9212422 | S30: SCFH | T30: =Q30*0.02831685 -> 16.84629558 | U30: NCMH
F31: Due to liquid movement (pump-out) = | G31: =Calculations!F19 -> 200.5 | I31: =G31*0.02831685 -> 5.677528425 | P31: Due to liquid movement (pump-in) = | Q31: =Calculations!F23 -> 200.5 | T31: =Q31*0.02831685 -> 5.677528425
F32: Due to thermal in-breathing = | G32: =Calculations!J19 -> 2746.347752 | I32: =G32*0.02831685 -> 77.76791734 | P32: Due to thermal out-breathing = | Q32: =Calculations!J23 -> 394.4212422 | T32: =Q32*0.02831685 -> 11.16876715

Sheet Ref. Info.
B4: C-, Y-, and Ri factors shown for reference only. Program automatically selects factors, based on used selected latitude, storage temperature, liquid type (volatility), and vapor pressure.
B6: C- and Y-Factors
B7: Latitude | C7: C-Factor | G7: Y-Factor
C8: Vapor Pressure Similar to Hexane | E8: Vapor Press. > than Hexane or Unknown
C9: Average Storage Temperature
C10: < 77 F | D10: > 77 F | E10: < 77 F | F10: > 77 F
B11: Below 42 Degrees | C11: 4 | D11: 6.5 | E11: 6.5 | F11: 6.5 | G11: 0.32
B12: Between 42 and 58 Degrees | C12: 3 | D12: 5 | E12: 5 | F12: 5 | G12: 0.25
B13: Above 58 Degrees | C13: 2.5 | D13: 4 | E13: 4 | F13: 4 | G13: 0.2
B15: The C-factor considers the effect of vapor pressure, average storage temperature, and location (latitude) on pump-in (inbreathing or padding) flow for tank blanketing regulators (PRV's).
B18: The Y-factor considers the effect of location (latitude) on pump-out (outbreathing or depadding) flow for tank vapor recovery back pressure (sustaining) regulators (BPRV's).
B21: Insulation Reduction Factor Ri
B22: Based on
B23: -- Inside heat transfer coefficient of 0.7 Btu/h·ft2·oF (4 W/(m2·K) for typical tank (API2000 7th ed 3.3.2.4)
B24: -- Insulation thermal conductivity of 0.05 W/(m·k) for Cellular Glass insulation.
B25: -- Fully insulated tank
B27: Hexane Vapor Pressure
B28: Hexane vapor pressure, shown for comparison, calculated between range of -13F and +198F (-29C and +92C), using Antoine equation.
B30: DISCLAIMER This program calculates the required in-breathing and out-breathing tank blanketing gas flow based on the input data, according to the method in API 2000 7th edition, Section 3.3. While this program is presented in good faith and believed to be reasonably accurate, Jordan Valve, a division of Richards Industrials, makes no warranty, either expressed or implied. In no event shall Jordan Valve, a division of Richards Industrials, be liable to anyone for any special, collateral, incidental or consequential damage in connection with these calculations.

Sheet Calculations (hidden)
B1: Latitude | D1: Vapor Pressure | F1: Storage Temp Units | G1: Temp Input | H1: Tank Vol. Units | I1: Tank Vol. Input | J1: Liquid Type | K1: Pump OUT/IN Units | L1: Pump OUT Rate Input | M1: Pump IN Rate Input | Q1: Insulation Thickness | R1: Ri 7th ed Eqn 11 | S1: Insulation Reduction Factor
A2: 1 | B2: Below 42° | D2: Similar to Hexane | F2: Fahrenheit | G2: =Main!F9 -> 80 | H2: Barrels | I2: =Main!I9 -> 2262 | J2: Volatile | K2: GPM | L2: =Main!B17 -> 25 | M2: =Main!M17 -> 25 | O2: 1 | P2: None | Q2: 0 | R2: 1 | S2: Insulation reduction factor based on heat transfer coefficient h = 4 W/(m2K), thermal conductivity λin = 0.05 W/(mK), and Eqn. (11) in API 2000 7th ed.
A3: 2 | B3: Between 42 and 58° | D3: Higher than Hexane | F3: Celsius | G3: Temp in Selected Units | H3: Cubic Feet | I3: Vol in Selected Units | J3: Non-Volatile | K3: LPM | L3: Pump-OUT in Units | M3: Pump-IN in Units | O3: 2 | P3: 1 in. (25mm) | Q3: 1 | R3: 0.3298153034
A4: 3 | B4: Above 58° | D4: Unknown | F4: - | G4: =IF(F7=1,G2*1,(G2*(9/5))+32) -> 80 | H4: Liters | I4: =IF(H7=1,I2*5.618,IF(H7=2,I2*1,IF(H7=3,I2*0.0353147,IF(H7=4,I2*35.3147,I2*0.133681)))) -> 2262 | J4: - | K4: M^3/HR | L4: =IF(K7=1,L2*1,IF(K7=2,L2/3.78541,L2*4.4029)) -> 25 | M4: =IF(K7=1,M2*1,IF(K7=2,M2/3.78541,M2*4.4029)) -> 25 | O4: 3 | P4: 2 in. (50mm) | Q4: 2 | R4: 0.1974723539
A5: 4 | B5: - | D5: - | F5: - | G5: Temp in F | H5: Cubic Meters | I5: Vol in ft3 | J5: - | K5: - | L5: Pump-OUT in GPM | M5: Pump-IN in GPM | O5: 4 | P5: 3 in. (75mm) | Q5: 3 | R5: 0.1409244645
A6: 5 | B6: - | D6: - | F6: - | G6: - | H6: Gallons | I6: - | J6: - | K6: - | L6: - | M6: - | O6: 5 | P6: 4 in. (100mm) | Q6: 4 | R6: 0.1095530237
A7: Selection: | B7: 2 | D7: 1 | F7: 1 | G7: - | H7: 2 | I7: - | J7: 2 | K7: 1 | L7: - | M7: - | O7: 6 | P7: 6 in. (150mm) | Q7: 6 | R7: 0.07580351728
B8: =CHOOSE(B7, B2,B3,B4) -> Between 42 and 58° | D8: =CHOOSE(D7, D2,D3,D4) -> Similar to Hexane | F8: =CHOOSE(F7,F2,F3) -> Fahrenheit | G8: - | H8: =CHOOSE(H7,H2,H3,H4,H5,H6) -> Cubic Feet | I8: - | J8: =CHOOSE(J7,J2,J3) -> Non-Volatile | K8: =CHOOSE(K7,K2,K3,K4) -> GPM | L8: - | M8: - | O8: 7 | P8: 8 in. (200mm) | Q8: 8 | R8: 0.05795085767
O9: 8 | P9: 10 in. (250mm) | Q9: 10 | R9: 0.0469043152
B10: C-Factor | E10: Y-Factor | G10: T < or ≥77 | J10: Volatility Corr. | O10: 9 | P10: 12 in. (300mm) | Q10: 12 | R10: 0.03939489442
B11: =IF((AND(B7=1,D7=1,G11=1)),B12,IF((AND(B7=1,D7=1,G11=2)),C12,IF((AND(B7=2,D7=1,G11=1)),B13,IF((AND(B7=3,D7=1,G11=1)),B14,IF((AND(B7=1,D7>=2,G11=2)),C12,IF((AND(B7=2,D7>=2,G11=2)),C13,C14)))))) -> 4 | E11: =IF(B7=1,E12,IF(B7=2,E13,E14)) -> 0.25 | G11: =IF(G4<77,1,2) -> 2 | J11: =IF(J7=1,16.04,8.02) -> 8.02 | O11: Selection: | P11: 1 | Q11: in. Thk. | R11: Insul. Reduct. Factor
B12: 4 | C12: 6.5 | D12: <42F | E12: 0.32 | P12: =CHOOSE(P11,P2,P3,P4,P6,P7,P8,P9,P10,) -> None | Q12: =VLOOKUP($P$11,$O$2:$R$10,3) -> 0 | R12: =VLOOKUP($P$11,$O$2:$R$10,4) -> 1
B13: 3 | C13: 5 | D13: ≥42F&≤58F | E13: 0.25
B14: 2.5 | C14: 4 | D14: >58F | E14: 0.2
B15: ~Hexane & <77F | C15: >77F &/or >Hexane
B18: Blanketing Flow Required | E18: = | F18: Blanketing Flow due to Pump Out | I18: + | J18: Blanketing Flow due to Thermal | P18: Hexane Vap. Press. at Avg. Storage Temp.
B19: =(L4*8.02)+(3.08*B11*(I4^0.7)*R12) -> 2946.847752 | C19: GPM | F19: =L4*8.02 -> 200.5 | J19: =(3.08*B11*(I4^0.7)*R12) -> 2746.347752 | P19: Antoine Equation
B20: =(L4*8.02)+(3.08*B11*(I3^0.7))*R12 | F20: =PumpOutGPM*8.02 | J20: =3.08*CFact*(TankVol0.7)*InsulFact | P20: log(P) = A-B/(T+C) | S20: P in mmHg, T in Celsius
B22: Vapor Recovery Flow | E22: = | F22: Blanketing Flow due to Pump In | I22: + | J22: Blanketing Flow due to Thermal | P22: Antoine Coefficients (Hexane) | T22: ID = 274 | U22: Formulae = C6H14
B23: =(M4*J11)+(1.51*E11*(I4^0.9)*R12) -> 594.9212422 | C23: GPM | F23: =(M4*J11) -> 200.5 | J23: =(1.51*E11*(I4^0.9)*R12) -> 394.4212422 | P23: A | Q23: B | R23: C | S23: Temp | T23: Vapor Pressure | X23: (Temp)
B24: =(M4*J11)+(1.51*E11*(I4^0.9)*R12) | F24: =(PumpInGPM*8.02*Volatility Corr) | J24: =1.51*YFact*(Tank0.9)*InsulFact | P24: 6.87024 | Q24: 1168.72 | R24: 224.21 | S24: oC | T24: mmHg | U24: psia | V24: kPa | W24: =IF(F7=1,U24,V24) -> psia | X24: oF
R25: Tmin | S25: -25 | T25: =10^($P$24-$Q$24/($R$24+S25)) -> 10.08013257 | U25: =0.01933677*T25 -> 0.194917205 | V25: =0.133332239*T25 -> 1.344006644 | W25: =IF(F7=1,U25,V25) -> 0.194917205 | X25: =CONVERT(S25, "C", "F") -> -13
B26: Verified against examples in article from Tank Storage Magazine 2015, Sizing tank blanketing regulators using the latest API 2000 7th edition guidelines | R26: Tmax | S26: 92 | T26: =10^($P$24-$Q$24/($R$24+S26)) -> 1493.534319 | U26: =0.01933677*T26 -> 28.88012961 | V26: =0.133332239*T26 -> 199.1362747 | W26: =IF(F7=1,U26,V26) -> 28.88012961 | X26: =CONVERT(S26, "C", "F") -> 197.6
B27: JJH 2/16/22 | R27: Tselect | S27: =IF($F$7=1,CONVERT($G$2,"F","C"),$G$2) -> 26.66666667 | T27: =10^($P$24-$Q$24/($R$24+S27)) -> 162.8155802 | U27: =0.01933677*T27 -> 3.148327426 | V27: =0.133332239*T27 -> 21.70856585 | W27: =IF(F8=1,U27,V27) -> 21.70856585 | X27: 80
C29: To Main | R29: Vap Press for Selected Units w/in Temp. Range = | W29: =IF(F7=1,IF(U27<U25,"<-0.195",IF(U27>U26,">28.88",U27)),IF(U27<U25,"<-0.195",IF(U27>U26,">28.88",V27)) ) -> 3.148327426
C30: From Main
P31: Ver. 1.0b -- mmHg to kPa conversion corrected JJH 10/11/24
P32: Ver. 1.0c -- Volatile & Non-Vol. informative note corrected JJH 4/30/25
